bitfinex/quotes_BTCUSD_20230117
["timestamp","ask_amount","ask_price","bid_price","bid_amount"]
[1673979627989,0.50091678,21266.0,21263.0,0.47028]
[1673979628243,0.30254716,21266.0,21263.0,0.47028]
[1673979628511,0.321608,21265.0,21263.0,0.47028]
[1673979628761,0.024411,21264.0,21263.0,0.47028]
[1673979629049,0.59347238,21266.0,21263.0,0.47028]
[1673979629288,0.940527,21265.0,21262.0,0.46285695]
[1673979629543,0.321608,21264.0,21262.0,0.00234967]
[1673979629812,0.024411,21263.0,21262.0,0.00234967]
[1673979630062,0.47027,21265.0,21262.0,0.00234967]
[1673979630571,0.321608,21264.0,21262.0,0.00234967]
[1673979630822,0.024411,21263.0,21262.0,0.00234967]
[1673979631095,0.02474938,21263.0,21262.0,0.00234967]
[1673979631347,0.02474938,21263.0,21262.0,0.00224028]
[1673979632122,0.11927938,21263.0,21262.0,0.00224028]
[1673979632379,0.58957938,21263.0,21262.0,0.00224028]
[1673979632644,1.05987938,21263.0,21262.0,0.00224028]
[1673979632908,1.18397938,21263.0,21262.0,0.00224028]
[1673979633406,1.33397938,21263.0,21262.0,0.00224028]
[1673979633921,0.39337938,21263.0,21262.0,0.00224028]
[1673979634177,0.24337938,21263.0,21262.0,0.00224028]
[1673979634740,0.39337938,21263.0,21262.0,0.00224028]
[1673979635250,0.24337938,21263.0,21262.0,0.00224028]
[1673979635567,0.019411,21263.0,21262.0,0.00224028]
[1673979635836,0.019411,21263.0,21262.0,0.10215028]
[1673979636093,0.940546,21265.0,21262.0,0.00224028]
[1673979636349,1.05087821,21265.0,21262.0,0.00224028]
[1673979636625,0.321505,21264.0,21262.0,0.00224028]
[1673979636951,0.11906,21263.0,21262.0,0.00224028]
[1673979637466,1.17409811,21263.0,21262.0,0.00224028]
[1673979637723,1.29819811,21263.0,21262.0,0.00224028]
[1673979637978,0.09775972,21262.0,21261.0,0.00239269]
[1673979638256,1.48330872,21262.0,21261.0,0.00239269]
[1673979638517,1.7174134,21262.0,21261.0,0.00239269]
[1673979638776,1.48330872,21262.0,21261.0,0.00239269]
[1673979639046,1.4836471,21262.0,21261.0,0.00239269]
[1673979639299,1.6336471,21262.0,21261.0,0.00239269]
[1673979639556,1.4836471,21262.0,21261.0,0.00239269]
[1673979639814,1.86117542,21262.0,21261.0,0.00239269]
[1673979640861,1.96117542,21262.0,21261.0,0.00239269]
[1673979641876,2.11117542,21262.0,21261.0,0.00239269]
[1673979642159,2.41117542,21262.0,21261.0,0.00239269]
[1673979642648,2.41117542,21262.0,21258.0,0.00239269]
[1673979642649,0.48761889,21261.0,21258.0,0.00239269]
[1673979642924,0.1241,21259.0,21258.0,0.00239269]
[1673979643180,1.536383,21259.0,21258.0,0.00239269]
[1673979643461,1.412283,21259.0,21258.0,0.00239269]
[1673979643732,1.913583,21259.0,21258.0,0.00239269]
[1673979644019,1.763583,21259.0,21258.0,0.00239269]
[1673979645377,2.20871611,21259.0,21258.0,0.00239269]
[1673979646708,1.88032966,21259.0,21258.0,0.00239269]
[1673979647239,2.35071866,21259.0,21258.0,0.00239269]
[1673979649074,2.45071866,21259.0,21258.0,0.00239269]
[1673979650964,0.09760731,21258.0,21256.0,0.0036213]
[1673979651272,0.960396,21257.0,21256.0,0.0036213]
[1673979652829,0.01953,21257.0,21256.0,0.0036213]
[1673979653602,0.940866,21257.0,21256.0,0.0036213]
[1673979653855,0.791938,21257.0,21256.0,0.0036213]
[1673979654108,0.321505,21257.0,21256.0,0.0036213]
[1673979655683,0.09760731,21258.0,21256.0,0.0036213]
[1673979655937,0.09760731,21258.0,21256.0,1.39731484]
[1673979656244,0.09760731,21258.0,21257.0,0.321505]
[1673979656528,0.09760731,21258.0,21256.0,1.39729484]
[1673979656799,0.09760731,21258.0,21256.0,0.92683984]
[1673979657049,0.09794569,21258.0,21257.0,0.470433]
[1673979657809,0.09794569,21258.0,21256.0,0.4740593]
[1673979658079,0.321505,21257.0,21256.0,0.0036213]
[1673979658579,0.63518826,21258.0,21256.0,0.0036213]
[1673979658825,0.56835669,21258.0,21256.0,0.0036213]
[1673979659101,0.321505,21257.0,21256.0,0.0036213]
[1673979659353,0.56821557,21258.0,21256.0,0.0036213]
[1673979659865,0.321505,21257.0,21256.0,0.0036213]
[1673979660117,1.07588423,21257.0,21256.0,0.0036213]
[1673979660650,1.54631723,21257.0,21256.0,0.0036213]
[1673979661350,1.64631723,21257.0,21256.0,0.0036213]
[1673979661608,1.17588423,21257.0,21256.0,0.0036213]
[1673979661871,1.64631723,21257.0,21256.0,0.0036213]
[1673979662123,1.76921723,21257.0,21256.0,0.0036213]
[1673979662379,2.08991941,21257.0,21256.0,0.0036213]
[1673979662923,2.08991941,21257.0,21255.0,0.00056605]
[1673979662924,0.2463787,21256.0,21255.0,0.00056605]
[1673979663191,0.86701039,21256.0,21255.0,0.00056605]
[1673979663444,2.23162039,21256.0,21255.0,0.00056605]
[1673979663707,1.78162039,21256.0,21255.0,0.00056605]
[1673979664284,1.3044187,21256.0,21255.0,0.00056605]
[1673979664804,1.1805187,21256.0,21255.0,0.00056605]
[1673979665066,2.10772039,21256.0,21255.0,0.00056605]
[1673979665652,1.65772039,21256.0,21255.0,0.00056605]
[1673979665916,1.1805187,21256.0,21255.0,0.00056605]
[1673979666181,1.0568187,21256.0,21255.0,0.00056605]
[1673979667855,1.10542952,21256.0,21255.0,0.00056605]
[1673979669163,1.0568187,21256.0,21255.0,0.00056605]
[1673979670971,1.2068187,21256.0,21255.0,0.00056605]
[1673979671233,1.0568187,21256.0,21255.0,0.00056605]
[1673979672582,0.5863637,21256.0,21255.0,0.00056605]
[1673979672877,0.5668337,21256.0,21255.0,0.00056605]
[1673979673188,0.8883387,21256.0,21255.0,0.00056605]
[1673979673988,1.3587937,21256.0,21255.0,0.00056605]
[1673979674773,1.5087937,21256.0,21255.0,0.00056605]
[1673979675302,1.3587937,21256.0,21255.0,0.00056605]
[1673979676359,1.5087937,21256.0,21255.0,0.00056605]
[1673979681211,1.3587937,21256.0,21255.0,0.00056605]
[1673979681500,1.8641927,21256.0,21255.0,0.00056605]
[1673979681734,2.07326052,21256.0,21255.0,0.00056605]
[1673979681996,3.12278207,21256.0,21255.0,0.00056605]
[1673979682282,2.65232707,21256.0,21255.0,0.00056605]
[1673979682783,1.85157967,21256.0,21255.0,0.00056605]
[1673979683026,1.49958147,21256.0,21255.0,0.00056605]
[1673979683286,1.5087937,21256.0,21255.0,0.00056605]
[1673979683822,1.3587937,21256.0,21255.0,0.00056605]
[1673979684082,1.49958147,21256.0,21255.0,0.00056605]
[1673979684606,1.3587937,21256.0,21255.0,0.00056605]
[1673979685390,1.0372887,21256.0,21255.0,0.00056605]
[1673979685647,1.3587937,21256.0,21255.0,0.00056605]
[1673979688861,0.5728337,21256.0,21255.0,0.00056605]
[1673979689113,0.1023787,21256.0,21255.0,0.761679]
[1673979689387,0.1023787,21256.0,21255.0,2.05972158]
[1673979689646,0.10226349,21256.0,21255.0,1.86899563]
[1673979689908,0.10226349,21256.0,21255.0,2.3078247]
[1673979690223,0.10226349,21256.0,21255.0,2.5160683]
[1673979690481,0.10226349,21256.0,21255.0,2.77154855]
[1673979690760,0.1,21257.0,21256.0,0.17286923]
[1673979691016,0.1,21257.0,21256.0,1.70938423]
[1673979691543,0.1,21257.0,21256.0,1.40938423]
[1673979692063,0.1,21257.0,21256.0,2.1229298]
[1673979692318,0.1,21257.0,21256.0,1.8896734]
[1673979692587,0.1,21257.0,21256.0,1.9814298]
[1673979693653,0.1,21257.0,21256.0,2.1896734]
[1673979693918,0.1,21257.0,21256.0,1.9814298]
[1673979694200,0.1,21257.0,21256.0,2.71681535]
[1673979694456,0.1,21257.0,21256.0,2.57813927]
[1673979695022,0.1,21257.0,21256.0,2.71681535]
[1673979695578,0.1,21257.0,21256.0,2.50776212]
[1673979695841,0.1,21257.0,21256.0,2.34127297]
[1673979696370,0.1,21257.0,21256.0,2.09284969]
[1673979696648,0.1,21257.0,21256.0,1.58381948]
[1673979697003,0.1,21257.0,21256.0,1.78621217]
[1673979697785,0.1,21257.0,21256.0,1.64691073]
[1673979698037,0.1,21257.0,21256.0,1.63841073]
[1673979698316,0.1,21257.0,21256.0,1.54065101]
[1673979699570,0.1,21257.0,21256.0,1.67995245]
[1673979700081,0.1,21257.0,21256.0,1.82995245]
[1673979700590,0.1,21257.0,21256.0,3.17164703]
[1673979700850,0.1,21259.0,21258.0,2.203149]
[1673979701103,0.1,21259.0,21258.0,2.503149]
[1673979701862,0.1,21259.0,21258.0,2.203149]
[1673979702115,0.1,21259.0,21258.0,2.353349]
[1673979703347,0.1,21259.0,21258.0,1.807738]
[1673979703625,0.10033838,21259.0,21258.0,1.807738]
[1673979703879,0.1,21259.0,21258.0,1.807738]
[1673979705104,0.1,21262.0,21259.0,0.321561]
[1673979705356,0.1,21262.0,21260.0,0.791927]
[1673979705605,0.1,21262.0,21260.0,0.470366]
[1673979705826,0.10033838,21262.0,21260.0,0.470366]
[1673979706287,0.10033838,21262.0,21259.0,0.73579995]
[1673979706539,0.57067338,21262.0,21259.0,0.0747]
[1673979707064,0.57067338,21262.0,21259.0,0.470384]
[1673979707065,0.83799824,21262.0,21259.0,0.470384]
[1673979707320,1.30834124,21262.0,21258.0,0.940807]
[1673979707582,1.48765002,21262.0,21257.0,0.95234339]
[1673979707837,1.38765002,21262.0,21258.0,0.940801]
[1673979708098,1.20834124,21262.0,21258.0,0.940801]
[1673979708360,1.20834124,21262.0,21258.0,0.470407]
[1673979708629,0.45779617,21261.0,21257.0,0.08770502]
[1673979708885,0.45779617,21261.0,21257.0,0.01250502]
[1673979708886,1.91198278,21260.0,21257.0,0.01250502]
[1673979709140,0.289429,21259.0,21257.0,0.01250502]
[1673979709398,0.791972,21258.0,21257.0,0.01250502]
[1673979709697,0.321561,21258.0,21257.0,0.01250502]
[1673979709943,0.471561,21258.0,21257.0,0.01250502]
[1673979710179,0.321561,21258.0,21257.0,0.01250502]
[1673979710893,0.470411,21258.0,21257.0,0.01250502]
[1673979711124,0.791972,21258.0,21257.0,0.01250502]
[1673979711630,0.791972,21258.0,21254.0,1.04775246]
[1673979711631,0.59912601,21257.0,21254.0,0.470482]
[1673979711886,0.48900579,21257.0,21254.0,0.470482]
[1673979712143,0.95944279,21257.0,21254.0,0.470482]
[1673979712403,0.95944279,21257.0,21253.0,0.47416155]
[1673979712404,0.78013401,21257.0,21253.0,0.47416155]
[1673979712687,0.95944279,21257.0,21253.0,0.47416155]
[1673979712962,0.78013401,21257.0,21253.0,0.94468255]
[1673979713233,0.30969701,21257.0,21253.0,0.94468255]
[1673979713528,0.30969701,21257.0,21253.0,1.1354085]
[1673979714023,0.30969701,21257.0,21255.0,0.470477]
[1673979714552,0.5256,21259.0,21256.0,0.396761]
[1673979714800,0.5256,21259.0,21257.0,0.791994]
[1673979715055,0.5256,21259.0,21257.0,0.470433]
[1673979715571,0.5256,21259.0,21257.0,0.940866]
[1673979719194,0.09986838,21258.0,21257.0,0.470433]
[1673979719447,0.09953,21258.0,21257.0,0.470433]
[1673979719702,0.09953,21258.0,21256.0,0.89965464]
[1673979719980,0.09953,21258.0,21257.0,0.470433]
[1673979720212,0.5256,21259.0,21257.0,0.470433]
[1673979721441,0.52593838,21259.0,21257.0,0.470433]
[1673979722211,0.5256,21259.0,21257.0,0.470433]
[1673979722431,0.52593838,21259.0,21257.0,0.470425]
[1673979722688,0.5256,21259.0,21257.0,0.470425]
[1673979722947,0.5256,21259.0,21254.0,0.470484]
[1673979722948,0.72016649,21258.0,21254.0,0.470484]
[1673979723203,0.46873778,21257.0,21254.0,0.940971]
[1673979723459,0.46873778,21257.0,21254.0,0.470487]
[1673979723460,0.17964716,21257.0,21254.0,0.470487]
[1673979723715,0.289429,21255.0,21253.0,0.00365455]
[1673979723960,0.05782527,21256.0,21253.0,0.00365455]
[1673979723961,0.321561,21254.0,21253.0,0.00365455]
[1673979724222,0.470469,21256.0,21253.0,0.00365455]
[1673979724734,0.00033838,21255.0,21253.0,0.00365455]
[1673979724962,0.00033838,21255.0,21253.0,0.47417455]
[1673979725288,0.470469,21256.0,21253.0,0.00365455]
[1673979725523,0.00033838,21255.0,21253.0,0.00365455]
[1673979725778,0.321561,21254.0,21253.0,0.00365455]
[1673979726048,0.00033838,21255.0,21253.0,0.00365455]
[1673979726339,0.940971,21255.0,21253.0,0.00365455]
[1673979726553,0.80362364,21256.0,21253.0,0.00365455]
[1673979727070,0.33349302,21256.0,21253.0,0.47417355]
[1673979727875,0.33349302,21256.0,21253.0,0.94469455]
[1673979728856,0.33315464,21256.0,21253.0,0.94469455]
[1673979729674,0.00033838,21255.0,21253.0,0.47417555]
[1673979729936,0.33315464,21256.0,21253.0,0.47417555]
[1673979730476,0.33315464,21256.0,21253.0,0.94469655]
[1673979731239,0.33315464,21256.0,21253.0,0.47417555]
[1673979731240,0.60674788,21256.0,21253.0,0.47417555]
[1673979731529,0.321561,21255.0,21253.0,0.47417555]
[1673979731793,0.289429,21255.0,21253.0,0.47417555]
[1673979732042,0.09986838,21254.0,21253.0,0.47417555]
[1673979733169,0.00033838,21254.0,21253.0,0.00365455]
[1673979733392,1.37767393,21254.0,21253.0,0.00365455]
[1673979733643,1.45247393,21254.0,21253.0,0.00365455]
[1673979734210,1.33769738,21254.0,21253.0,0.0035427]
[1673979734396,1.26289738,21254.0,21253.0,0.0035427]
[1673979734900,0.321561,21254.0,21253.0,0.0035427]
[1673979735157,1.023999,21255.0,21253.0,0.0035427]
[1673979735397,0.5535,21255.0,21253.0,0.0035427]
[1673979735650,0.5535,21255.0,21253.0,0.4740597]
[1673979735901,0.5535,21255.0,21253.0,0.0035427]
[1673979736170,1.023981,21255.0,21253.0,0.0035427]
[1673979736410,0.321561,21254.0,21253.0,0.0035427]
[1673979736902,0.79206,21254.0,21253.0,0.0035427]
[1673979737426,1.262559,21254.0,21253.0,0.0035427]
[1673979737952,1.60081018,21254.0,21253.0,0.0035427]
[1673979738481,1.60114856,21254.0,21253.0,0.0035427]
[1673979738735,1.82008659,21254.0,21253.0,0.0035427]
[1673979738997,2.81327605,21254.0,21253.0,0.0035427]
[1673979739311,2.37248828,21254.0,21253.0,0.0035427]
[1673979740018,2.29728828,21254.0,21253.0,0.0035427]
[1673979741814,2.73807605,21254.0,21253.0,0.0035427]
[1673979742331,2.73807605,21254.0,21253.0,0.06928878]
[1673979742571,3.0243665,21254.0,21253.0,0.06928878]
[1673979743560,2.81317605,21254.0,21253.0,0.06928878]
[1673979743844,2.29423802,21254.0,21253.0,0.06928878]
[1673979744106,2.15345025,21254.0,21253.0,0.06928878]
[1673979746360,2.45345025,21254.0,21253.0,0.06928878]
[1673979746614,2.15345025,21254.0,21253.0,0.06928878]
[1673979746867,2.45345025,21254.0,21253.0,0.06928878]
[1673979747377,3.27953064,21254.0,21253.0,0.06928878]
[1673979748116,2.76834019,21254.0,21253.0,0.06928878]
[1673979748363,2.92755242,21254.0,21253.0,0.06928878]
[1673979749871,2.62755242,21254.0,21253.0,0.06928878]
[1673979750866,2.92755242,21254.0,21253.0,0.06928878]
[1673979751872,3.06834019,21254.0,21253.0,0.06928878]
[1673979754331,3.27953064,21254.0,21253.0,0.06928878]
[1673979754612,2.15345025,21254.0,21253.0,0.06928878]
[1673979755112,2.29423802,21254.0,21253.0,0.06928878]
[1673979755368,2.29423802,21254.0,21253.0,0.06920664]
[1673979755865,0.78715581,21250.0,21249.0,0.00365455]
[1673979756115,0.99859659,21250.0,21249.0,0.00365455]
[1673979756370,0.81928781,21250.0,21249.0,0.00365455]
[1673979757110,1.28987581,21250.0,21249.0,0.00365455]
[1673979757861,1.262737,21250.0,21246.0,0.86686304]
[1673979758111,0.69339949,21249.0,21246.0,0.470661]
[1673979758364,0.321561,21248.0,21245.0,0.470679]
[1673979758614,0.17930878,21248.0,21245.0,0.470679]
[1673979758865,0.87458949,21249.0,21245.0,0.470679]
[1673979759109,1.22893314,21249.0,21245.0,0.470679]
[1673979759362,1.22893314,21249.0,21244.0,0.94580033]
[1673979759363,1.69954314,21249.0,21244.0,0.94580033]
[1673979759895,0.321561,21248.0,21244.0,0.94580033]
[1673979760134,0.00033838,21247.0,21244.0,0.94580033]
[1673979760383,0.321561,21246.0,21244.0,0.00438533]
[1673979760635,0.94167538,21247.0,21244.0,0.00438533]
[1673979760875,0.49494804,21246.0,21244.0,0.00438533]
[1673979761118,0.760127,21245.0,21244.0,0.00438533]
[1673979761873,1.230825,21245.0,21244.0,0.00438533]
[1673979762937,1.60560012,21245.0,21244.0,0.00438533]
[1673979763471,1.95362827,21245.0,21244.0,0.00438533]
[1673979764696,2.10362827,21245.0,21244.0,0.00438533]
[1673979764935,1.95362827,21245.0,21244.0,0.00438533]
[1673979765442,2.43082996,21245.0,21244.0,0.00438533]
[1673979766756,2.90152796,21245.0,21244.0,0.00438533]
[1673979767942,3.31360921,21245.0,21244.0,0.00438533]
[1673979768195,3.61360921,21245.0,21244.0,0.00438533]
[1673979768455,3.75439698,21245.0,21244.0,0.00438533]
[1673979768709,3.75402708,21245.0,21244.0,0.00025488]
[1673979769444,3.61360921,21245.0,21244.0,0.00025488]
[1673979769687,3.75402708,21245.0,21244.0,0.00025488]
[1673979769938,3.61360921,21245.0,21244.0,0.00025488]
[1673979770185,3.75402708,21245.0,21244.0,0.00025488]
[1673979770436,3.61360921,21245.0,21244.0,0.00025488]
[1673979770930,3.27672796,21245.0,21244.0,0.00025488]
[1673979771636,3.37672796,21245.0,21244.0,0.00025488]
[1673979773443,3.7130879,21245.0,21244.0,0.00025488]
[1673979773716,0.09974512,21244.0,21243.0,0.00262022]
[1673979773964,2.83915198,21244.0,21243.0,0.00262022]
[1673979775222,2.53915198,21244.0,21243.0,0.00262022]
[1673979775476,2.46405198,21244.0,21243.0,0.00262022]
[1673979775722,2.76405198,21244.0,21243.0,0.00262022]
[1673979776463,1.98994981,21244.0,21243.0,0.00262022]
[1673979776709,2.36514981,21244.0,21243.0,0.00262022]
[1673979777218,2.70230446,21244.0,21243.0,0.00262022]
[1673979777467,2.36548819,21244.0,21243.0,0.00262022]
[1673979779006,1.46061954,21244.0,21243.0,0.00262022]
[1673979779256,1.42404619,21244.0,21243.0,0.00262022]
[1673979779613,2.36548819,21244.0,21243.0,0.00262022]
[1673979780751,2.83959036,21244.0,21243.0,0.00262022]
[1673979781553,3.17570082,21244.0,21243.0,0.00262022]
[1673979781799,3.39121869,21244.0,21243.0,0.00262022]
[1673979782021,3.25080082,21244.0,21243.0,0.00262022]
[1673979782501,3.40012117,21244.0,21243.0,0.00262022]
[1673979783002,2.29028819,21244.0,21243.0,0.00262022]
[1673979784783,2.36528819,21244.0,21243.0,0.00262022]
[1673979785781,1.84028819,21244.0,21243.0,0.00262022]
[1673979786071,1.84028819,21244.0,21243.0,0.10253022]
[1673979786072,0.89202712,21244.0,21243.0,0.10253022]
[1673979786316,0.89202712,21244.0,21243.0,0.00262022]
[1673979786563,0.57046612,21244.0,21243.0,0.00262022]
[1673979786813,0.09974512,21244.0,21243.0,0.00262022]
[1673979787097,0.89202712,21244.0,21243.0,0.00262022]
[1673979787563,1.04118712,21244.0,21243.0,0.00262022]
[1673979787811,1.36274812,21244.0,21243.0,0.00262022]
[1673979788073,1.04118712,21244.0,21243.0,0.00262022]
[1673979788371,1.36274812,21244.0,21243.0,0.00262022]
[1673979788637,0.09974512,21244.0,21243.0,0.27726022]
[1673979788856,0.09974512,21244.0,21243.0,0.59882122]
[1673979789353,0.09974512,21244.0,21243.0,0.74800322]
[1673979789631,0.09974512,21244.0,21243.0,0.07782022]
[1673979789854,0.1000835,21244.0,21243.0,0.00262022]
[1673979790621,0.21423285,21244.0,21243.0,0.00262022]
[1673979790875,0.1000835,21244.0,21243.0,0.00262022]
[1673979791608,0.09974512,21244.0,21243.0,0.00262022]
[1673979791858,0.09974512,21244.0,21243.0,0.57327322]
[1673979792370,0.09974512,21244.0,21243.0,0.10253022]
[1673979793112,0.09974512,21244.0,21243.0,0.57327322]
[1673979793868,0.1000835,21244.0,21243.0,0.72217322]
[1673979794122,0.09974512,21244.0,21243.0,0.72217322]
[1673979795939,0.09974512,21244.0,21243.0,0.62226322]
[1673979796687,0.09974512,21244.0,21243.0,0.15152022]
[1673979797219,1.04118712,21244.0,21243.0,0.00262022]
[1673979797500,1.36274812,21244.0,21243.0,0.00262022]
[1673979798031,0.89202712,21244.0,21243.0,0.00232022]
[1673979798289,0.09974512,21244.0,21243.0,0.00232022]
[1673979799380,0.57046612,21244.0,21243.0,0.00232022]
[1673979799646,0.89202712,21244.0,21243.0,0.00232022]
[1673979800225,1.74666903,21244.0,21243.0,0.00232022]
[1673979800490,1.74666903,21244.0,21236.0,0.54057851]
[1673979800491,0.94420194,21242.0,21236.0,0.54057851]
[1673979800770,0.14092276,21240.0,21236.0,0.54057851]
[1673979801026,0.321561,21237.0,21236.0,0.54057851]
[1673979801287,0.97174578,21237.0,21236.0,0.54057851]
[1673979801563,0.32189938,21237.0,21236.0,0.54057851]
[1673979803160,0.00033838,21237.0,21236.0,0.54057851]
[1673979803672,0.94209038,21237.0,21236.0,0.54057851]
[1673979803950,1.26365138,21237.0,21236.0,0.54057851]
[1673979804989,1.26365138,21237.0,21236.0,0.00391403]
[1673979805452,1.26365138,21237.0,21236.0,0.07180025]
[1673979805723,0.79277538,21237.0,21236.0,0.07180025]
[1673979806233,0.47121438,21237.0,21236.0,0.07180025]
[1673979806489,0.79277538,21237.0,21236.0,0.07180025]
[1673979806747,2.1110703,21237.0,21236.0,0.07180025]
[1673979806997,2.32245445,21237.0,21236.0,0.07180025]
[1673979807254,1.79953303,21237.0,21236.0,0.07180025]
[1673979808044,1.80861027,21237.0,21236.0,0.07180025]
[1673979808787,2.28581196,21237.0,21236.0,0.07180025]
[1673979809041,3.50269062,21237.0,21236.0,0.07180025]
[1673979809570,4.53714684,21237.0,21236.0,0.07180025]
[1673979809824,4.44736412,21237.0,21236.0,0.07180025]
[1673979810072,4.30615408,21237.0,21236.0,0.07180025]
[1673979810585,4.1701746,21237.0,21236.0,0.07180025]
[1673979810839,4.52246412,21237.0,21236.0,0.07180025]
[1673979811099,4.73371162,21237.0,21236.0,0.07180025]
[1673979811353,4.522317,21237.0,21236.0,0.07180025]
[1673979811894,4.38108855,21237.0,21236.0,0.07180025]
[1673979812122,4.16938419,21237.0,21236.0,0.07180025]
[1673979812429,4.38026215,21237.0,21236.0,0.07180025]
[1673979812698,4.23969947,21237.0,21236.0,0.07180025]
[1673979812949,4.521545,21237.0,21236.0,0.07180025]
[1673979813504,3.04188832,21237.0,21236.0,0.07180025]
[1673979813759,2.60585596,21237.0,21236.0,0.07180025]
[1673979814539,2.74639674,21237.0,21236.0,0.07180025]
[1673979814790,2.60585596,21237.0,21236.0,0.07180025]
[1673979815307,1.26281938,21237.0,21236.0,0.2625262]
[1673979815615,1.26281938,21237.0,21236.0,0.07180025]
[1673979815616,0.47038238,21237.0,21236.0,0.07180025]
[1673979815856,0.470857,21238.0,21236.0,0.07180025]
[1673979817378,0.35230691,21239.0,21237.0,0.15063934]
[1673979817629,0.35230691,21239.0,21238.0,0.396761]
[1673979818400,0.35230691,21239.0,21238.0,0.0752]
[1673979819350,0.35230691,21239.0,21238.0,1.311613]
[1673979819609,0.35230691,21239.0,21238.0,1.782467]
[1673979819866,0.35230691,21239.0,21238.0,1.857067]
[1673979820146,0.00263594,21242.0,21239.0,0.15]
[1673979820403,0.00263594,21242.0,21241.0,0.5851]
[1673979820685,0.00263594,21242.0,21241.0,2.33836095]
[1673979820915,0.00263594,21242.0,21241.0,1.862735]
[1673979822239,0.00263594,21242.0,21241.0,1.562735]
[1673979822758,0.09974512,21244.0,21241.0,1.862735]
[1673979823007,0.09974512,21244.0,21243.0,0.1498]
[1673979823286,0.09974512,21244.0,21243.0,1.562847]
[1673979823556,0.09974512,21244.0,21243.0,1.412847]
[1673979826527,0.09974512,21244.0,21242.0,0.94031174]
[1673979826782,0.09974512,21244.0,21242.0,0.46955174]
[1673979827030,0.09974512,21244.0,21242.0,0.94031174]
[1673979827270,0.09974512,21244.0,21242.0,0.46955174]
[1673979827984,0.09974512,21244.0,21242.0,0.94031674]
[1673979828467,0.09974512,21244.0,21242.0,0.46955174]
[1673979829218,0.57046812,21244.0,21242.0,0.46955174]
[1673979829467,1.04118912,21244.0,21241.0,0.0752]
[1673979829732,0.67644599,21243.0,21239.0,0.470811]
[1673979829984,0.93951378,21242.0,21238.0,0.11541668]
[1673979830269,0.17930878,21241.0,21238.0,0.11541668]
[1673979830586,0.321561,21240.0,21238.0,0.11541668]
[1673979830814,0.17930878,21241.0,21237.0,0.54606]
[1673979830815,1.12088778,21241.0,21237.0,0.54606]
[1673979831321,1.12088778,21241.0,21237.0,0.0752]
[1673979831826,0.941579,21241.0,21237.0,0.0752]
[1673979833369,1.16941125,21241.0,21237.0,0.0752]
[1673979833889,1.16941125,21241.0,21237.0,0.546065]
[1673979834409,0.941579,21241.0,21237.0,0.546065]
[1673979835245,0.941579,21241.0,21237.0,0.73679095]
[1673979836002,0.941579,21241.0,21237.0,0.546065]
[1673979837659,0.470786,21242.0,21237.0,0.546065]
[1673979837921,0.65009478,21242.0,21237.0,1.20766695]
[1673979838446,0.65009478,21242.0,21238.0,0.15]
[1673979838695,0.470786,21242.0,21238.0,0.81157195]
[1673979839217,0.941555,21242.0,21238.0,1.13242595]
[1673979839505,0.941555,21242.0,21238.0,0.9417]
[1673979840263,0.941555,21242.0,21238.0,1.13242595]
[1673979840739,0.941555,21242.0,21238.0,0.9417]
[1673979841001,0.941555,21242.0,21238.0,0.470846]
[1673979842551,0.941555,21242.0,21237.0,0.3860509]
[1673979842807,1.17597018,21242.0,21237.0,0.3860509]
[1673979843053,0.40407087,21241.0,21237.0,0.07744701]
[1673979843318,0.470814,21240.0,21237.0,0.07744701]
[1673979843861,1.05418165,21241.0,21238.0,0.470854]
[1673979844119,0.87487287,21241.0,21238.0,0.66157995]
[1673979844374,0.87487287,21241.0,21238.0,0.470854]
[1673979845141,0.87487287,21241.0,21238.0,0.66157995]
[1673979845408,0.40407087,21241.0,21237.0,0.54830301]
[1673979845660,1.52495665,21241.0,21237.0,0.54830301]
[1673979845918,1.05416665,21241.0,21237.0,1.01917901]
[1673979846175,0.40407087,21241.0,21237.0,1.01917901]
[1673979846474,0.58337965,21241.0,21237.0,1.01917901]
[1673979847745,0.87485787,21241.0,21237.0,1.01917901]
[1673979847984,0.87485787,21241.0,21237.0,1.01919901]
[1673979848208,1.34564487,21241.0,21237.0,0.54832301]
[1673979848473,0.87485787,21241.0,21237.0,0.54832301]
[1673979848733,0.87485787,21241.0,21237.0,1.01919901]
[1673979849242,0.40407087,21241.0,21237.0,1.01919901]
[1673979850015,0.87486187,21241.0,21237.0,1.01919901]
[1673979850564,0.40407087,21241.0,21237.0,1.01919901]
[1673979851070,0.40407087,21241.0,21238.0,0.15]
[1673979851325,0.40407087,21241.0,21238.0,0.941675]
[1673979851601,0.40407087,21241.0,21238.0,0.470831]
[1673979851602,0.87485987,21241.0,21238.0,0.470831]
[1673979852536,0.40407087,21241.0,21238.0,0.470831]
[1673979852794,0.40407087,21241.0,21238.0,0.941685]
[1673979853064,0.40407087,21241.0,21239.0,0.15]
[1673979853314,0.40407087,21241.0,21239.0,0.620831]
[1673979853580,0.40407087,21241.0,21239.0,0.470831]
[1673979854639,1.00469878,21243.0,21239.0,0.470831]
[1673979854887,1.00469878,21243.0,21239.0,1.13238795]
[1673979855155,0.14054078,21243.0,21240.0,0.19072595]
[1673979855413,0.31067748,21244.0,21241.0,1.78967888]
[1673979855414,0.09974512,21244.0,21241.0,1.78967888]
[1673979855690,0.09974512,21244.0,21242.0,0.321561]
[1673979855942,0.09974512,21244.0,21243.0,0.75561611]
[1673979856191,0.09974512,21244.0,21243.0,0.43405511]
[1673979857457,0.09974512,21244.0,21243.0,1.22635911]
[1673979857709,0.09974512,21244.0,21243.0,1.69710211]
[1673979858726,0.09974512,21244.0,21243.0,1.69744136]
[1673979859015,0.08974512,21244.0,21243.0,1.77254136]
[1673979859795,0.08974512,21244.0,21243.0,2.26829037]
[1673979861548,0.08974512,21244.0,21243.0,2.34279037]
[1673979861799,0.08974512,21244.0,21243.0,2.92859037]
[1673979863179,0.08974512,21244.0,21243.0,2.93709037]
[1673979864223,0.08974512,21244.0,21243.0,2.63709037]
[1673979864510,0.08974512,21244.0,21243.0,2.35089037]
[1673979865528,0.08974512,21244.0,21243.0,2.26755112]
[1673979867899,0.08974512,21244.0,21243.0,2.56755112]
[1673979868433,0.08974512,21244.0,21243.0,2.26755112]
[1673979871306,0.08974512,21244.0,21243.0,2.56755112]
[1673979871830,0.08974512,21244.0,21243.0,2.26755112]
[1673979872840,0.08974512,21244.0,21243.0,2.65075112]
[1673979874726,0.08974512,21244.0,21243.0,2.65075112]
[1673979874983,0.08974512,21244.0,21243.0,2.35075112]
[1673979875517,0.08974512,21244.0,21243.0,2.19285112]
[1673979875785,0.08974512,21244.0,21243.0,1.87129012]
[1673979877082,0.08974512,21244.0,21243.0,1.37554111]
[1673979877338,0.08974512,21244.0,21243.0,0.90479811]
[1673979878650,0.08974512,21244.0,21243.0,1.37554111]
[1673979878932,0.08974512,21244.0,21243.0,0.90479811]
[1673979879969,0.08974512,21244.0,21243.0,0.470743]